[Event "GER-ch Youth U16 2019"]
[Site "Willingen"]
[Date "2019.06.14"]
[Round "8.7"]
[White "Kopylov, Daniel"]
[Black "Boder, Jan"]
[Result "1/2-1/2"]
[ECO "B34"]
[WhiteElo "2263"]
[BlackElo "2123"]
[Annotator "NA"]
[PlyCount "80"]
[EventDate "2019.06.07"]
[EventType "swiss"]
[EventRounds "9"]
[EventCountry "GER"]
[SourceTitle "playchess.com"]
[Source "ChessBase"]
[SourceQuality "1"]
[TimeControl "40/5400+30:1800+30"]

1. e4 {[%emt 0:00:00]} c5 {[%emt 0:00:00]} 2. Nf3 {[%emt 0:00:00]} Nc6 {[%emt 0:00:00]} 3. d4 {[%emt 0:00:00]} cxd4 {[%emt 0:00:00]} 4. Nxd4 {[%emt 0:00:03]} g6 {[%emt 0:00:00]} 5. Nc3 {[%emt 0:00:07]} Bg7 {[%emt 0:00:00]} 6. Be3 {[%emt 0:00:09]} Nf6 {[%emt 0:00:00]} 7. Nxc6 {[%emt 0:00:22]} bxc6 {[%emt 0:00:05]} 8. e5 {[%emt 0:00:16]} Ng8 {[%emt 0:03:44]} 9. Bd4 {[%emt 0:00:14]} Qc7 {[%emt 0:02:50]} 10. e6 {[%emt 0:03:19]} Nf6 {[%emt 0:00:40]} 11. exd7+ {[%emt 0:00:19]} Bxd7 {[%emt 0:00:54]} 12. Bc4 {[%emt 0:01:18]} Rb8 {[%emt 0:01:06]} 13. Qe2 {[%emt 0:03:23]} Nh5 {[%emt 0:04:30]} 14. Bxg7 {[%emt 0:05:25]} Nxg7 {[%emt 0:00:05]} 15. O-O {[%emt 0:01:04]} Be6 {[%emt 0:03:43]} 16. b3 {[%emt 0:02:08]} O-O {[%emt 0:00:31]} 17. Rad1 {[%emt 0:05:11]} Rfd8 {[%emt 0:03:05]} 18. Ne4 {[%emt 0:04:09]} Bxc4 {[%emt 0:01:50]} 19. Qxc4 {[%emt 0:01:55]} Ne6 {[%emt 0:00:13]} 20. h3 {[%emt 0:02:10]} c5 {[%emt 0:03:30]} 21. c3 {[%emt 0:05:45]} Rxd1 {[%emt 0:08:20]} 22. Rxd1 {[%emt 0:00:13]} Rd8 {[%emt 0:00:22]} 23. Rxd8+ {[%emt 0:07:19]} Qxd8 {[%emt 0:02:25]} 24. g3 {[%emt 0:00:08]} Qc7 {[%emt 0:03:26]} 25. Qd5 {[%emt 0:01:45]} Kg7 {[%emt 0:04:08]} 26. h4 {[%emt 0:01:24]} h5 {[%emt 0:01:05]} 27. a3 {[%emt 0:02:05]} a5 {[%emt 0:00:59]} 28. Nd2 {[%emt 0:01:50]} Qd8 {[%emt 0:02:44]} 29. Qxd8 {[%emt 0:05:01]} Nxd8 {[%emt 0:00:40]} 30. Kf1 {[%emt 0:01:45]} Kf8 {[%emt 0:04:28]} 31. Nc4 {[%emt 0:03:20]} Nb7 {[%emt 0:01:18]} 32. Ke2 {[%emt 0:01:08]} Ke8 {[%emt 0:12:25]} 33. Ne5 {[%emt 0:01:07]} f6 {[%emt 0:03:03]} 34. Nd3 {[%emt 0:06:00]} e5 {[%emt 0:00:40]} 35. Ke3 {[%emt 0:05:44]} Kd7 {[%emt 0:00:35]} 36. Nb2 {[%emt 0:13:08]} g5 {[%emt 0:03:46]} 37. hxg5 {[%emt 0:09:24]} fxg5 {[%emt 0:00:06]} 38. Nd3 {[%emt 0:00:18]} Ke6 {[%emt 0:00:19]} 39. f3 {[%emt 0:03:33]} Kd5 {[%emt 0:03:26]} 40. Nf2 {[%emt 0:04:12]} Nd6 {[%emt 0:04:47] normal Ke4+} 1/2-1/2

[Event "GER-ch Youth U16 2019"]
[Site "Willingen"]
[Date "2019.06.14"]
[Round "8.8"]
[White "Koelle, Tobias"]
[Black "Hommel, Niclas"]
[Result "1/2-1/2"]
[ECO "D92"]
[WhiteElo "2215"]
[BlackElo "1953"]
[Annotator "NA"]
[PlyCount "78"]
[EventDate "2019.06.07"]
[EventType "swiss"]
[EventRounds "9"]
[EventCountry "GER"]
[SourceTitle "playchess.com"]
[Source "ChessBase"]
[SourceQuality "1"]
[TimeControl "40/5400+30:1800+30"]

1. d4 {[%emt 0:00:00]} Nf6 {[%emt 0:00:00]} 2. c4 {[%emt 0:00:00]} g6 {[%emt 0:00:00]} 3. Nc3 {[%emt 0:00:18]} d5 {[%emt 0:00:00]} 4. Nf3 {[%emt 0:01:12]} Bg7 {[%emt 0:00:09]} 5. Bf4 {[%emt 0:01:02]} dxc4 {[%emt 0:07:59]} 6. e3 {[%emt 0:01:12]} O-O {[%emt 0:06:46]} 7. Bxc4 {[%emt 0:00:45]} c5 {[%emt 0:00:05]} 8. d5 {[%emt 0:21:18]} Nbd7 {[%emt 0:09:25]} 9. e4 {[%emt 0:04:43]} Nb6 {[%emt 0:01:23]} 10. Be2 {[%emt 0:02:21]} e6 {[%emt 0:07:04]} 11. dxe6 {[%emt 0:05:03]} Qxd1+ {[%emt 0:04:19]} 12. Rxd1 {[%emt 0:00:02]} Bxe6 {[%emt 0:00:09]} 13. Bd6 {[%emt 0:08:48]} Rfc8 {[%emt 0:03:14]} 14. O-O {[%emt 0:02:50]} Ne8 {[%emt 0:17:19]} 15. Be5 {[%emt 0:00:26]} Rd8 {[%emt 0:03:08]} 16. Bxg7 {[%emt 0:01:28]} Nxg7 {[%emt 0:01:23]} 17. Ne5 {[%emt 0:04:42]} f6 {[%emt 0:05:31]} 18. Nd3 {[%emt 0:01:44]} Rac8 {[%emt 0:00:09]} 19. Nf4 {[%emt 0:02:45]} Kf7 {[%emt 0:03:26]} 20. Nb5 {[%emt 0:01:54]} Ke7 {[%emt 0:04:03]} 21. Nxe6 {[%emt 0:04:20]} Nxe6 {[%emt 0:00:28]} 22. Bg4 {[%emt 0:02:16]} a6 {[%emt 0:01:41]} 23. Nc3 {[%emt 0:00:17]} Rxd1 {[%emt 0:01:51]} 24. Rxd1 {[%emt 0:00:17]} Rd8 {[%emt 0:00:03]} 25. Rxd8 {[%emt 0:03:20]} Nxd8 {[%emt 0:01:02]} 26. h4 {[%emt 0:08:11]} Kd6 {[%emt 0:04:25]} 27. f4 {[%emt 0:02:19]} Ne6 {[%emt 0:00:39]} 28. g3 {[%emt 0:01:10]} Nd4 {[%emt 0:01:32]} 29. h5 {[%emt 0:01:20]} Nb5 {[%emt 0:02:10]} 30. e5+ {[%emt 0:02:02]} fxe5 {[%emt 0:03:38]} 31. Ne4+ {[%emt 0:00:04]} Ke7 {[%emt 0:00:49]} 32. h6 {[%emt 0:03:35]} exf4 {[%emt 0:04:20]} 33. gxf4 {[%emt 0:00:03]} Nd5 {[%emt 0:02:05]} 34. f5 {[%emt 0:00:56]} gxf5 {[%emt 0:02:49]} 35. Bxf5 {[%emt 0:00:03]} Nf6 {[%emt 0:00:09]} 36. Nxc5 {[%emt 0:02:50]} Nd6 {[%emt 0:00:12]} 37. Bd3 {[%emt 0:00:16]} Ng4 {[%emt 0:00:27]} 38. Bxh7 {[%emt 0:02:46]} Nxh6 {[%emt 0:00:05]} 39. Bd3 {[%emt 0:00:18]} Ng4 {[%emt 0:00:24] normal} 1/2-1/2

[Event "GER-ch Youth U16 2019"]
[Site "Willingen"]
[Date "2019.06.14"]
[Round "8.9"]
[White "Huber, Benedikt"]
[Black "Yi, Danny"]
[Result "1/2-1/2"]
[ECO "D76"]
[WhiteElo "2051"]
[BlackElo "2205"]
[Annotator "NA"]
[PlyCount "47"]
[EventDate "2019.06.07"]
[EventType "swiss"]
[EventRounds "9"]
[EventCountry "GER"]
[SourceTitle "playchess.com"]
[Source "ChessBase"]
[SourceQuality "1"]
[TimeControl "40/5400+30:1800+30"]

1. d4 {[%emt 0:00:00]} Nf6 {[%emt 0:00:00]} 2. c4 {[%emt 0:00:00]} g6 {[%emt 0:00:00]} 3. Nf3 {[%emt 0:00:03]} Bg7 {[%emt 0:00:06]} 4. g3 {[%emt 0:00:27]} O-O {[%emt 0:01:49]} 5. Bg2 {[%emt 0:00:23]} d5 {[%emt 0:04:27]} 6. cxd5 {[%emt 0:00:41]} Nxd5 {[%emt 0:00:35]} 7. O-O {[%emt 0:00:34]} Nb6 {[%emt 0:05:30]} 8. Nc3 {[%emt 0:02:16]} Nc6 {[%emt 0:08:08]} 9. d5 {[%emt 0:01:33]} Na5 {[%emt 0:01:22]} 10. e4 {[%emt 0:00:12]} c6 {[%emt 0:01:09]} 11. Bf4 {[%emt 0:03:25]} cxd5 {[%emt 0:15:33]} 12. Nxd5 {[%emt 0:00:33]} Nxd5 {[%emt 0:00:33]} 13. exd5 {[%emt 0:00:18]} Nc4 {[%emt 0:08:27]} 14. Qb3 {[%emt 0:02:22]} Nd6 {[%emt 0:03:22]} 15. Rfe1 {[%emt 0:08:50]} Bf6 {[%emt 0:06:52]} 16. Nd2 {[%emt 0:02:50]} Bf5 {[%emt 0:05:07]} 17. Be4 {[%emt 0:14:21]} Nxe4 {[%emt 0:03:33]} 18. Nxe4 {[%emt 0:00:21]} Bxe4 {[%emt 0:00:28]} 19. Rxe4 {[%emt 0:00:12]} Qd7 {[%emt 0:01:14]} 20. Be5 {[%emt 0:01:11]} Bxe5 {[%emt 0:02:54]} 21. Rxe5 {[%emt 0:00:12]} Rac8 {[%emt 0:01:09]} 22. Qa3 {[%emt 0:22:43]} Rfe8 {[%emt 0:05:31]} 23. Qxa7 {[%emt 0:01:47]} f6 {[%emt 0:00:18]} 24. Re6 {normal} 1/2-1/2

[Event "GER-ch Youth U16 2019"]
[Site "Willingen"]
[Date "2019.06.14"]
[Round "8.10"]
[White "Biermann, Florian"]
[Black "Gutkin, Ilya"]
[Result "0-1"]
[ECO "A04"]
[WhiteElo "2018"]
[BlackElo "2041"]
[Annotator "NA"]
[PlyCount "74"]
[EventDate "2019.06.07"]
[EventType "swiss"]
[EventRounds "9"]
[EventCountry "GER"]
[SourceTitle "playchess.com"]
[Source "ChessBase"]
[SourceQuality "1"]
[TimeControl "40/5400+30:1800+30"]

1. Nf3 {[%emt 0:00:00]} b6 {[%emt 0:01:16]} 2. g3 {[%emt 0:00:28]} Bb7 {[%emt 0:00:04]} 3. Bg2 {[%emt 0:00:07]} g6 {[%emt 0:02:52]} 4. c4 {[%emt 0:00:52]} c5 {[%emt 0:02:03]} 5. Nc3 {[%emt 0:02:47]} Bg7 {[%emt 0:00:29]} 6. O-O {[%emt 0:00:55]} Nf6 {[%emt 0:03:16]} 7. d4 {[%emt 0:07:10]} cxd4 {[%emt 0:00:06]} 8. Qxd4 {[%emt 0:00:09]} O-O {[%emt 0:00:47]} 9. Qd3 {[%emt 0:00:12]} d6 {[%emt 0:02:40]} 10. Bg5 {[%emt 0:02:38]} Nbd7 {[%emt 0:01:47]} 11. Rac1 {[%emt 0:04:08]} Rc8 {[%emt 0:03:27]} 12. Rfd1 {[%emt 0:06:40]} Bxf3 {[%emt 0:17:37]} 13. exf3 {[%emt 0:05:28]} Ne5 {[%emt 0:01:43]} 14. Qe2 {[%emt 0:06:24]} Nxc4 {[%emt 0:04:52]} 15. Bxf6 {[%emt 0:03:37]} Bxf6 {[%emt 0:07:57]} 16. Nd5 {[%emt 0:02:06]} Ne5 {[%emt 0:00:47]} 17. Rxc8 {[%emt 0:01:00]} Qxc8 {[%emt 0:00:10]} 18. f4 {[%emt 0:02:09]} Qc4 {[%emt 0:09:27]} 19. Qxc4 {[%emt 0:02:43]} Nxc4 {[%emt 0:00:07]} 20. Nxf6+ {[%emt 0:00:04]} exf6 {[%emt 0:00:06]} 21. b3 {[%emt 0:00:11]} Na3 {[%emt 0:09:31]} 22. Rxd6 {[%emt 0:01:04]} Rc8 {[%emt 0:01:01]} 23. Bd5 {[%emt 0:02:51]} Rc7 {[%emt 0:00:54]} 24. Rxf6 {[%emt 0:18:38]} Rd7 {[%emt 0:01:04]} 25. Be4 {[%emt 0:05:44]} Rd4 {[%emt 0:06:41]} 26. Bf3 {[%emt 0:05:03]} Rd2 {[%emt 0:01:08]} 27. Kg2 {[%emt 0:07:14]} Nb5 {[%emt 0:03:35]} 28. g4 {[%emt 0:02:54]} Nd6 {[%emt 0:02:30]} 29. h4 {[%emt 0:03:51]} Kf8 {[%emt 0:01:46]} 30. h5 {[%emt 0:01:08]} Ke7 {[%emt 0:00:17]} 31. g5 {[%emt 0:00:05]} Rxa2 {[%emt 0:04:08]} 32. h6 {[%emt 0:04:53]} Rc2 {[%emt 0:01:55]} 33. Bd5 {[%emt 0:00:51]} a5 {[%emt 0:02:19]} 34. Bc4 {[%emt 0:01:43]} Rxc4 {[%emt 0:07:34]} 35. bxc4 {[%emt 0:00:06]} a4 {[%emt 0:00:03]} 36. f5 {[%emt 0:01:27]} gxf5 {[%emt 0:00:06]} 37. g6 {[%emt 0:00:04]} fxg6 {[%emt 0:00:12] normal} 0-1

[Event "GER-ch Youth U16 2019"]
[Site "Willingen"]
[Date "2019.06.14"]
[Round "8.12"]
[White "Buller, Ian Joshua"]
[Black "Rietschel, Tilo"]
[Result "1-0"]
[ECO "B27"]
[WhiteElo "1904"]
[BlackElo "2005"]
[Annotator "NA"]
[PlyCount "77"]
[EventDate "2019.06.07"]
[EventType "swiss"]
[EventRounds "9"]
[EventCountry "GER"]
[SourceTitle "playchess.com"]
[Source "ChessBase"]
[SourceQuality "1"]
[TimeControl "40/5400+30:1800+30"]

1. e4 {[%emt 0:00:00]} c5 {[%emt 0:00:00]} 2. Nf3 {[%emt 0:00:00]} g6 {[%emt 0:00:00]} 3. d4 {[%emt 0:00:55]} cxd4 {[%emt 0:00:00]} 4. Qxd4 {[%emt 0:00:25]} Nf6 {[%emt 0:00:42]} 5. Nc3 {[%emt 0:00:27]} Nc6 {[%emt 0:01:13]} 6. Qa4 {[%emt 0:00:26]} d6 {[%emt 0:03:27]} 7. e5 {[%emt 0:07:21]} dxe5 {[%emt 0:07:09]} 8. Nxe5 {[%emt 0:00:11]} Bd7 {[%emt 0:05:35]} 9. Nxd7 {[%emt 0:00:28]} Nxd7 {[%emt 0:02:11]} 10. Be3 {[%emt 0:03:34]} Bg7 {[%emt 0:01:03]} 11. Be2 {[%emt 0:05:28]} O-O {[%emt 0:02:23]} 12. O-O {[%emt 0:00:13]} Qa5 {[%emt 0:09:06]} 13. Qh4 {[%emt 0:37:59]} Qb4 {[%emt 0:13:34]} 14. Qxb4 {[%emt 0:12:33]} Nxb4 {[%emt 0:02:00]} 15. Rad1 {[%emt 0:02:43]} Ne5 {[%emt 0:09:49]} 16. Rd2 {[%emt 0:02:05]} Rfc8 {[%emt 0:07:05]} 17. a3 {[%emt 0:01:43]} Na6 {[%emt 0:03:09]} 18. Bxa6 {[%emt 0:01:22]} bxa6 {[%emt 0:00:05]} 19. Nd5 {[%emt 0:02:53]} Kf8 {[%emt 0:02:09]} 20. b3 {[%emt 0:01:23]} e6 {[%emt 0:00:55]} 21. Nf4 {[%emt 0:04:07]} Ng4 {[%emt 0:04:05]} 22. h3 {[%emt 0:01:59]} Nxe3 {[%emt 0:00:10]} 23. fxe3 {[%emt 0:00:07]} Ke8 {[%emt 0:01:49]} 24. Rfd1 {[%emt 0:00:50]} Rc7 {[%emt 0:00:47]} 25. Kf2 {[%emt 0:01:23]} Rac8 {[%emt 0:01:01]} 26. c4 {[%emt 0:03:06]} a5 {[%emt 0:00:52]} 27. a4 {[%emt 0:00:11]} Rb8 {[%emt 0:00:39]} 28. Rd3 {[%emt 0:00:12]} Rcb7 {[%emt 0:00:38]} 29. Rb1 {[%emt 0:01:18]} Rb4 {[%emt 0:03:34]} 30. c5 {[%emt 0:01:16]} Rxa4 {[%emt 0:05:30]} 31. Rc1 {[%emt 0:01:35]} Rab4 {[%emt 0:01:48]} 32. c6 {[%emt 0:01:04]} Rc8 {[%emt 0:00:16]} 33. Rd7 {[%emt 0:03:14]} Rxc6 {[%emt 0:08:15]} 34. Rcd1 {[%emt 0:02:13]} Rxb3 {[%emt 0:05:00]} 35. Rxa7 {[%emt 0:00:22]} Be5 {[%emt 0:00:39]} 36. Rdd7 {[%emt 0:01:21]} Rb2+ {[%emt 0:00:42]} 37. Kf3 {[%emt 0:00:25]} f5 {[%emt 0:00:28]} 38. Rxh7 {[%emt 0:00:54]} Bxf4 {[%emt 0:00:36]} 39. Rh8# {normal} 1-0

[Event "GER-ch Youth U16 2019"]
[Site "Willingen"]
[Date "2019.06.14"]
[Round "8.13"]
[White "Burian, Simon"]
[Black "Pahl, Erik"]
[Result "1/2-1/2"]
[ECO "B96"]
[WhiteElo "2001"]
[BlackElo "2113"]
[Annotator "NA"]
[PlyCount "103"]
[EventDate "2019.06.07"]
[EventType "swiss"]
[EventRounds "9"]
[EventCountry "GER"]
[SourceTitle "playchess.com"]
[Source "ChessBase"]
[SourceQuality "1"]
[TimeControl "40/5400+30:1800+30"]

1. e4 {[%emt 0:00:00]} c5 {[%emt 0:00:00]} 2. Nf3 {[%emt 0:00:00]} d6 {[%emt 0:00:00]} 3. d4 {[%emt 0:00:00]} cxd4 {[%emt 0:00:00]} 4. Nxd4 {[%emt 0:00:05]} Nf6 {[%emt 0:00:00]} 5. Nc3 {[%emt 0:00:09]} a6 {[%emt 0:00:04]} 6. Bg5 {[%emt 0:00:18]} e6 {[%emt 0:00:05]} 7. f4 {[%emt 0:00:25]} h6 {[%emt 0:00:07]} 8. Bh4 {[%emt 0:00:07]} Qb6 {[%emt 0:00:05]} 9. a3 {[%emt 0:00:37]} Be7 {[%emt 0:00:07]} 10. Bf2 {[%emt 0:00:10]} Qc7 {[%emt 0:00:06]} 11. g4 {[%emt 0:00:46]} Nc6 {[%emt 0:05:44]} 12. h3 {[%emt 0:02:40]} Bd7 {[%emt 0:12:17]} 13. Bg2 {[%emt 0:05:56]} Nxd4 {[%emt 0:05:07]} 14. Qxd4 {[%emt 0:04:47]} e5 {[%emt 0:01:17]} 15. Qd2 {[%emt 0:05:59]} exf4 {[%emt 0:04:48]} 16. Qxf4 {[%emt 0:03:58]} Be6 {[%emt 0:02:25]} 17. O-O {[%emt 0:06:45]} O-O {[%emt 0:01:21]} 18. Bd4 {[%emt 0:06:07]} Nd7 {[%emt 0:03:06]} 19. Rad1 {[%emt 0:02:07]} Ne5 {[%emt 0:01:52]} 20. Qf2 {[%emt 0:02:47]} Rac8 {[%emt 0:04:30]} 21. Kh1 {[%emt 0:03:22]} b5 {[%emt 0:05:55]} 22. Qg3 {[%emt 0:05:21]} Bc4 {[%emt 0:17:40]} 23. Rf5 {[%emt 0:03:17]} Be6 {[%emt 0:04:56]} 24. Rf2 {[%emt 0:12:34]} Ng6 {[%emt 0:02:47]} 25. Rf5 {[%emt 0:05:08]} Bh4 {[%emt 0:05:16]} 26. Qf3 {[%emt 0:00:14]} Bxf5 {[%emt 0:05:28]} 27. gxf5 {[%emt 0:00:06]} Ne5 {[%emt 0:00:20]} 28. Qh5 {[%emt 0:01:17]} Qe7 {[%emt 0:00:53]} 29. Nd5 {[%emt 0:02:37]} Qg5 {[%emt 0:03:04]} 30. Qe2 {[%emt 0:00:13]} Qd8 {[%emt 0:02:39]} 31. Bb6 {[%emt 0:02:02]} Qd7 {[%emt 0:01:49]} 32. Qh5 {[%emt 0:02:29]} Bg5 {[%emt 0:00:26]} 33. h4 {[%emt 0:00:58]} g6 {[%emt 0:00:38]} 34. Qe2 {[%emt 0:01:17]} Bxh4 {[%emt 0:00:44]} 35. Bd4 {[%emt 0:01:43]} Qd8 {[%emt 0:01:49]} 36. f6 {[%emt 0:01:31]} Kh7 {[%emt 0:04:36]} 37. Bh3 {[%emt 0:04:43]} Nd7 {[%emt 0:01:59]} 38. Qg4 {[%emt 0:04:14]} Nxf6 {[%emt 0:04:01]} 39. Bxf6 {[%emt 0:01:21]} Bxf6 {[%emt 0:00:15]} 40. Qxc8 {[%emt 0:00:15]} Qxc8 {[%emt 0:00:36]} 41. Nxf6+ {[%emt 0:30:06]} Kg7 {[%emt 0:30:05]} 42. Bxc8 {[%emt 0:00:06]} Rxc8 {[%emt 0:00:17]} 43. Rxd6 {[%emt 0:00:31]} Rxc2 {[%emt 0:00:12]} 44. Rxa6 {[%emt 0:03:19]} Rxb2 {[%emt 0:00:17]} 45. Ne8+ {[%emt 0:00:28]} Kf8 {[%emt 0:00:36]} 46. Nd6 {[%emt 0:00:09]} Ke7 {[%emt 0:00:48]} 47. e5 {[%emt 0:03:23]} Rb3 {[%emt 0:00:00]} 48. Ra7+ {[%emt 0:00:00]} Ke6 {[%emt 0:00:00]} 49. Nxf7 {[%emt 0:00:00]} Rf3 {[%emt 0:00:00]} 50. Nd6 {[%emt 0:00:00]} Rb3 {[%emt 0:00:00]} 51. Ra5 {[%emt 0:00:00]} Kxe5 {[%emt 0:00:00]} 52. Rxb5+ {normal} 1/2-1/2

[Event "GER-ch Youth U16 2019"]
[Site "Willingen"]
[Date "2019.06.14"]
[Round "8.14"]
[White "Liebold, Aaron"]
[Black "Jeschke, Jan"]
[Result "1-0"]
[ECO "C00"]
[WhiteElo "1870"]
[BlackElo "1915"]
[Annotator "NA"]
[PlyCount "83"]
[EventDate "2019.06.07"]
[EventType "swiss"]
[EventRounds "9"]
[EventCountry "GER"]
[SourceTitle "playchess.com"]
[Source "ChessBase"]
[SourceQuality "1"]
[TimeControl "40/5400+30:1800+30"]

1. e4 {[%emt 0:00:00]} e6 {[%emt 0:00:00]} 2. c4 {[%emt 0:00:00]} d5 {[%emt 0:00:08]} 3. exd5 {[%emt 0:00:00]} exd5 {[%emt 0:00:09]} 4. cxd5 {[%emt 0:00:05]} Nf6 {[%emt 0:01:15]} 5. Nc3 {[%emt 0:00:58]} Nxd5 {[%emt 0:02:30]} 6. d4 {[%emt 0:00:41]} Bb4 {[%emt 0:03:48]} 7. Bd2 {[%emt 0:04:16]} O-O {[%emt 0:02:21]} 8. Bd3 {[%emt 0:01:25]} Re8+ {[%emt 0:02:33]} 9. Nge2 {[%emt 0:00:46]} Bg4 {[%emt 0:21:46]} 10. O-O {[%emt 0:03:24]} c6 {[%emt 0:03:40]} 11. Re1 {[%emt 0:02:08]} Nxc3 {[%emt 0:03:50]} 12. bxc3 {[%emt 0:04:20]} Bd6 {[%emt 0:00:07]} 13. Qc2 {[%emt 0:03:15]} h6 {[%emt 0:13:55]} 14. f3 {[%emt 0:04:13]} Be6 {[%emt 0:03:51]} 15. Nf4 {[%emt 0:05:48]} Qc7 {[%emt 0:01:02]} 16. g3 {[%emt 0:00:42]} Nd7 {[%emt 0:02:06]} 17. c4 {[%emt 0:03:16]} Rad8 {[%emt 0:09:47]} 18. Nxe6 {[%emt 0:04:25]} Rxe6 {[%emt 0:01:15]} 19. Rxe6 {[%emt 0:03:35]} fxe6 {[%emt 0:00:07]} 20. f4 {[%emt 0:04:37]} c5 {[%emt 0:09:46]} 21. Re1 {[%emt 0:02:52]} cxd4 {[%emt 0:01:35]} 22. Rxe6 {[%emt 0:01:57]} Nc5 {[%emt 0:00:31]} 23. Rg6 {[%emt 0:01:14]} Nxd3 {[%emt 0:02:17]} 24. Qxd3 {[%emt 0:00:05]} Rc8 {[%emt 0:06:52]} 25. f5 {[%emt 0:01:53]} Bf8 {[%emt 0:00:30]} 26. Bxh6 {[%emt 0:12:29]} Qxc4 {[%emt 0:00:18]} 27. Qxc4+ {[%emt 0:00:22]} Rxc4 {[%emt 0:00:04]} 28. Bxg7 {[%emt 0:01:28]} Bxg7 {[%emt 0:01:55]} 29. f6 {[%emt 0:00:05]} d3 {[%emt 0:02:30]} 30. Kf2 {[%emt 0:08:52]} Rc2+ {[%emt 0:00:50]} 31. Ke3 {[%emt 0:00:14]} Rxa2 {[%emt 0:00:51]} 32. h4 {[%emt 0:03:39]} Re2+ {[%emt 0:02:57]} 33. Kxd3 {[%emt 0:00:59]} Re6 {[%emt 0:00:08]} 34. Rxg7+ {[%emt 0:00:59]} Kf8 {[%emt 0:00:06]} 35. Rxb7 {[%emt 0:01:22]} Rxf6 {[%emt 0:00:06]} 36. Ke4 {[%emt 0:00:43]} Ra6 {[%emt 0:01:26]} 37. g4 {[%emt 0:04:25]} Ra4+ {[%emt 0:00:32]} 38. Kf5 {[%emt 0:00:40]} Ra5+ {[%emt 0:00:35]} 39. Kg6 {[%emt 0:00:45]} Ra4 {[%emt 0:00:45]} 40. Kh5 {[%emt 0:00:43]} Kg8 {[%emt 0:00:26]} 41. g5 {[%emt 0:30:56]} Kh8 {[%emt 0:02:40]} 42. g6 {[%emt 0:00:00] normal} 1-0

[Event "GER-ch Youth U16 2019"]
[Site "Willingen"]
[Date "2019.06.15"]
[Round "9.1"]
[White "Knuedel, Torben"]
[Black "Wachinger, Nikolas"]
[Result "0-1"]
[ECO "B23"]
[WhiteElo "2044"]
[BlackElo "2311"]
[Annotator "ChessBase"]
[PlyCount "76"]
[EventDate "2019.06.07"]
[EventType "swiss"]
[EventRounds "9"]
[EventCountry "GER"]
[SourceTitle "playchess.com"]
[Source "ChessBase"]
[SourceQuality "1"]
[TimeControl "40/5400+30:1800+30"]

1. e4 {[%emt 0:00:00]} c5 {[%emt 0:00:00]} 2. Nc3 {[%emt 0:00:00]} d6 {[%emt 0:00:26]} 3. f4 {[%emt 0:00:00]} Nc6 {[%emt 0:00:15]} 4. Nf3 {[%emt 0:00:00]} g6 {[%emt 0:00:16]} 5. Bc4 {[%emt 0:00:12]} Bg7 {[%emt 0:00:08]} 6. O-O {[%emt 0:00:13]} e6 {[%emt 0:00:14]} 7. d4 {[%emt 0:00:11]} cxd4 {[%emt 0:00:11]} 8. Nb5 {[%emt 0:00:09]} Nge7 {[%emt 0:00:09]} 9. Bb3 {[%emt 0:00:06]} O-O {[%emt 0:04:36]} 10. Nbxd4 {[%emt 0:00:10]} Na5 {[%emt 0:01:21]} 11. Be3 {[%emt 0:00:11]} a6 {[%emt 0:01:15]} 12. Qd2 {[%emt 0:01:01]} b5 {[%emt 0:01:59]} 13. Rad1 {[%emt 0:03:25]} Qc7 {[%emt 0:08:09]} 14. Qf2 {[%emt 0:09:34]} Nc4 15. Bxc4 {[%emt 0:06:37]} bxc4 {[%emt 0:11:44]} 16. Qh4 {[%emt 0:08:49]} e5 {[%emt 0:08:23]} 17. Ne2 {[%emt 0:03:26]} f5 {[%emt 0:00:41]} 18. fxe5 {[%emt 0:18:58]} dxe5 {[%emt 0:00:25]} 19. Kh1 {[%emt 0:00:28]} f4 {[%emt 0:08:07]} 20. Bd2 {[%emt 0:07:48]} Rb8 {[%emt 0:02:21]} 21. b3 {[%emt 0:08:43]} h6 {[%emt 0:03:46]} 22. Qe1 {[%emt 0:08:17]} Qc5 {[%emt 0:01:29]} 23. b4 {[%emt 0:02:07]} Qc6 {[%emt 0:01:05]} 24. Bc3 {[%emt 0:02:18]} Qxe4 {[%emt 0:02:27]} 25. Neg1 {[%emt 0:01:01]} Bb7 {[%emt 0:11:36]} 26. Qxe4 {[%emt 0:01:01]} Bxe4 {[%emt 0:00:03]} 27. Rfe1 {[%emt 0:01:38]} Nd5 {[%emt 0:01:33]} 28. Bxe5 {[%emt 0:01:56]} Bxe5 {[%emt 0:00:10]} 29. Nxe5 {[%emt 0:06:13]} Ne3 {[%emt 0:00:25]} 30. Rd2 {[%emt 0:00:03]} c3 {[%emt 0:01:26]} 31. Rf2 {[%emt 0:00:35]} Rxb4 {[%emt 0:00:33]} 32. Ne2 {[%emt 0:06:11]} Nxg2 {[%emt 0:00:44]} 33. Rxg2 {[%emt 0:00:07]} f3 {[%emt 0:00:03]} 34. Rf2 {[%emt 0:00:05]} fxe2+ {[%emt 0:00:08]} 35. Kg1 {[%emt 0:00:03]} Rxf2 {[%emt 0:00:12]} 36. Kxf2 {[%emt 0:00:09]} Bxc2 {[%emt 0:00:11]} 37. Rxe2 {[%emt 0:00:58]} Bf5 {[%emt 0:00:09]} 38. Nf3 {[%emt 0:02:33]} c2 {[%emt 0:00:08] normal} 0-1